bitfinex-derivatives/quotes_ETHF0:USTF0_20250810
["timestamp","ask_amount","ask_price","bid_price","bid_amount"]
[1754800970045,1.6565,4257.5,4257.4,22.7791]
[1754800970454,1.6565,4257.5,4257.4,21.582]
[1754800970654,1.6565,4257.5,4257.4,22.082]
[1754800971355,1.6565,4257.5,4257.4,22.4262]
[1754800972056,1.6565,4257.5,4257.4,23.2791]
[1754800972254,0.78117,4257.7,4257.4,22.6283]
[1754800972459,2.12617,4257.7,4257.6,1.1971]
[1754800974757,2.12617,4257.7,4257.6,0.995]
[1754800974957,2.12617,4257.7,4257.4,22.082]
[1754800975159,1.12248,4257.5,4257.4,22.8212]
[1754800975457,2.12618,4257.5,4257.4,23.2791]
[1754800977156,0.00332685,4257.7,4257.5,0.3442]
[1754800977363,0.31482685,4257.7,4257.6,1.4316]
[1754800977562,0.78449685,4257.7,4257.6,1.4316]
[1754800977860,1.08419685,4257.7,4257.6,1.4316]
[1754800978161,1.87829685,4257.7,4257.6,1.4316]
[1754800978362,2.12949685,4257.7,4257.6,1.4316]
[1754800979660,1.65982685,4257.7,4257.6,1.4316]
[1754800980661,1.65982685,4257.7,4257.6,1.1971]
[1754800982164,1.65982685,4257.7,4257.6,0.995]
[1754800982463,1.65982685,4257.7,4257.4,0.5]
[1754800982464,1.6565,4257.5,4257.4,1.037]
[1754800982763,1.6565,4257.5,4257.4,22.61]
[1754800983158,1.6565,4257.5,4257.4,1.037]
[1754800983463,1.6565,4257.5,4257.4,22.609]
[1754800984153,1.6565,4257.5,4257.4,22.78091608]
[1754800984359,1.6565,4257.5,4257.4,22.43681608]
[1754800984752,1.6565,4257.5,4257.4,0.5]
[1754800984963,1.6565,4257.5,4257.4,22.072]
[1754800985566,1.6565,4257.5,4257.4,22.54169]
[1754800985767,1.6565,4257.5,4257.4,23.90017532]
[1754800986657,1.6565,4257.5,4257.4,23.43048532]
[1754800987464,1.6565,4257.5,4257.4,23.42848532]
[1754800988459,1.6565,4257.5,4257.4,23.23728532]
[1754800988861,1.6565,4257.5,4257.4,22.24198532]
[1754800989961,1.6565,4257.5,4257.4,0.67198532]
[1754800990165,1.6565,4257.5,4257.4,22.23998532]
[1754800992060,1.6565,4257.5,4257.4,0.67198532]
[1754800992368,1.6565,4257.5,4257.4,22.23898532]
[1754800992666,1.6565,4257.5,4257.4,0.67198532]
[1754800992867,1.6565,4257.5,4257.4,22.066]
[1754800993067,1.6565,4257.5,4257.4,0.5]
[1754800993464,4.64228458,4257.5,4257.4,22.066]
[1754800993769,4.64228458,4257.5,4257.4,0.5]
[1754800997371,0.6681,4256.7,4256.6,0.6187]
[1754800997569,2.13277,4256.7,4256.6,22.35580556]
[1754800997769,2.13277,4256.7,4256.6,22.1837]
[1754800997969,2.13277,4256.7,4256.6,0.6187]
[1754800998169,2.13277,4256.7,4256.6,22.1837]
[1754800998370,2.13277,4256.7,4256.6,22.377]
[1754800998571,2.13277,4256.7,4256.6,22.7699]
[1754800999169,1.663,4256.7,4256.6,22.7699]
[1754801000175,1.663,4256.5,4256.4,34.696]
[1754801000369,1.663,4256.5,4256.4,56.4502]
[1754801000570,1.663,4256.5,4256.4,55.9804]
[1754801000771,1.663,4256.5,4256.4,55.9814]
[1754801001369,1.663,4256.5,4256.4,0.6638]
[1754801001569,1.663,4256.5,4256.4,22.4201]
[1754801001766,1.663,4256.5,4256.4,22.6113]
[1754801001970,1.663,4256.5,4256.4,22.813]
[1754801002872,2.13279,4256.5,4256.4,22.813]
[1754801005087,2.13279,4256.5,4256.4,22.2268]
[1754801005782,2.13279,4256.5,4256.4,0.6638]
[1754801005975,2.13284,4256.1,4256.0,4.4578]
[1754801006176,2.13284,4256.1,4256.0,26.0188]
[1754801008892,2.13284,4256.1,4256.0,4.4578]
[1754801009191,2.13284,4256.1,4255.7,0.6638]
[1754801009192,0.66567,4255.8,4255.7,0.6638]
[1754801009392,2.13287,4255.8,4255.7,0.6638]
[1754801009592,2.13287,4255.8,4255.7,22.2238]
[1754801009791,2.13287,4255.8,4255.7,21.8346]
[1754801010490,2.13287,4255.8,4255.7,22.2238]
[1754801010686,2.13287,4255.8,4255.7,0.6638]
[1754801010894,2.13287,4255.8,4255.7,21.8346]
[1754801011093,1.43501,4255.5,4255.4,0.9754]
[1754801011283,2.13291,4255.5,4255.4,22.81]
[1754801011487,1.663,4255.5,4255.4,22.81]
[1754801014489,1.663,4255.5,4255.4,21.8346]
[1754801014685,1.663,4255.5,4255.4,22.2238]
[1754801015087,0.46992,4255.4,4255.2,0.1912]
[1754801015391,1.6116,4255.3,4255.2,0.8595]
[1754801015592,1.6116,4255.3,4255.2,22.6151]
[1754801015988,1.6116,4255.3,4255.2,22.8031]
[1754801017797,0.5,4255.5,4255.2,22.8031]
[1754801017798,0.96991,4255.5,4255.4,0.64]
[1754801017991,0.96991,4255.5,4255.4,1.9543]
[1754801017992,0.5,4255.5,4255.4,1.9543]
[1754801020899,0.5,4255.5,4255.4,5.1621]
[1754801021996,0.5,4255.5,4255.4,5.33304062]
[1754801022501,0.5,4255.5,4255.4,7.01600482]
[1754801025297,0.8045,4255.5,4255.4,7.01600482]
[1754801025605,1.0837,4255.5,4255.4,7.01600482]
[1754801025794,1.0837,4255.5,4255.4,5.33304062]
[1754801026296,1.0837,4255.5,4255.4,7.01600482]
[1754801027608,1.0837,4255.5,4255.4,28.57000482]
[1754801027792,1.0837,4255.5,4255.4,5.33304062]
[1754801027993,1.0837,4255.5,4255.4,26.88504062]
[1754801028197,1.0837,4255.5,4255.4,28.56800482]
[1754801028602,1.0837,4255.5,4255.4,7.01600482]
[1754801028805,1.0837,4255.5,4255.4,28.56800482]
[1754801029201,0.5,4255.5,4255.4,29.03792482]
[1754801030104,0.5,4255.5,4255.4,27.35496062]
[1754801030307,0.8045,4255.5,4255.4,27.35496062]
[1754801030505,1.2792,4255.5,4255.4,27.35496062]
[1754801030806,1.2792,4255.5,4255.4,29.03470517]
[1754801032404,0.8045,4255.5,4255.4,29.03470517]
[1754801032607,0.5,4255.5,4255.4,27.35496062]
[1754801032800,0.5,4255.5,4255.4,27.35196062]
[1754801034402,0.5,4255.5,4255.4,27.35096062]
[1754801035299,0.5,4255.5,4255.4,27.34961508]
[1754801035911,0.5,4255.5,4255.4,5.80161508]
[1754801036115,0.5,4255.5,4255.4,27.34761508]
[1754801037610,0.5,4255.5,4255.4,27.13021508]
[1754801037810,1.7303,4255.5,4255.4,27.13021508]
[1754801037999,2.1116,4255.5,4255.4,5.58521508]
[1754801038205,2.1116,4255.5,4255.4,27.13021508]
[1754801039311,1.0,4255.5,4255.4,27.34661508]
[1754801039512,0.5,4255.5,4255.4,27.34661508]
[1754801040214,0.8045,4255.5,4255.4,27.34661508]
[1754801040809,0.5,4255.5,4255.4,27.34661508]
[1754801041211,0.8045,4255.5,4255.4,27.34661508]
[1754801042209,0.5,4255.5,4255.4,27.34661508]
[1754801042514,0.5,4255.5,4255.4,29.44979892]
[1754801042712,0.3813,4256.4,4256.3,1.52372]
[1754801042713,1.2303,4256.4,4256.3,1.52372]
[1754801042917,1.6116,4256.4,4256.3,23.24972]
[1754801044005,1.6116,4256.4,4256.3,23.06572]
[1754801044614,1.6116,4256.4,4256.3,21.542]
[1754801045815,1.6116,4256.4,4256.3,22.91244375]
[1754801046114,1.6116,4256.4,4256.3,21.70954375]
[1754801046310,1.6116,4256.4,4256.3,21.70854375]
[1754801048317,1.6116,4256.4,4256.3,22.09704375]
[1754801049015,1.6116,4256.4,4256.3,21.9275]
[1754801049215,1.6116,4256.4,4256.3,22.09700092]
[1754801049713,1.6116,4256.4,4256.3,0.55800092]
[1754801049917,1.6116,4256.4,4256.3,22.09300092]
[1754801052606,0.46978,4256.7,4256.4,0.46981]
[1754801052807,1.6567,4256.6,4256.5,22.5498]
[1754801053012,1.6567,4256.6,4256.5,22.90444333]
[1754801053217,1.6567,4256.6,4256.5,23.11374333]
[1754801053421,1.2468,4256.6,4256.5,23.11374333]
[1754801053921,1.2468,4256.6,4256.5,26.32154333]
[1754801054113,0.2806,4256.6,4256.5,26.32154333]
[1754801054318,0.5837,4256.6,4256.5,26.32154333]
[1754801055119,1.6567,4257.0,4256.9,1.2009]
[1754801055307,1.6567,4257.0,4256.9,22.7339]
[1754801055509,0.2806,4257.0,4256.9,22.7339]
[1754801055820,0.2806,4257.0,4256.9,22.9432]
[1754801055821,0.5837,4257.0,4256.9,22.9432]
[1754801056022,0.7733,4257.0,4256.9,22.9432]
[1754801056221,1.6567,4257.0,4256.9,22.9432]
[1754801056920,1.6567,4257.0,4256.9,22.7339]
[1754801057124,1.6567,4257.0,4256.9,22.90326882]
[1754801057619,0.9437,4256.7,4256.6,1.68106344]
[1754801057822,1.6567,4256.7,4256.6,0.16931618]
[1754801058011,1.6567,4256.7,4256.6,21.69831618]
[1754801058621,1.6567,4256.7,4256.6,21.69731618]
[1754801058919,1.6567,4256.7,4256.1,1.68106344]
[1754801059224,1.6567,4256.2,4256.1,1.68106344]
[1754801059424,1.6567,4256.2,4256.1,23.37738378]
[1754801059618,1.6567,4256.2,4256.1,1.85038378]
[1754801059818,1.6567,4256.2,4256.1,0.16932034]
[1754801060021,1.6567,4256.2,4256.1,21.69632034]
[1754801060219,1.6567,4256.2,4256.1,21.527]
[1754801061223,1.6567,4256.2,4256.1,21.69637478]
[1754801062525,1.6567,4256.2,4256.1,21.527]
[1754801062825,1.6567,4256.2,4256.1,21.9155]
[1754801063214,1.6567,4256.2,4256.1,22.724]
[1754801063419,1.6567,4256.2,4256.1,22.8934399]
[1754801064024,1.6567,4256.2,4256.1,22.724]
[1754801064725,1.6567,4256.2,4256.1,22.551]
[1754801064921,1.6567,4256.2,4256.1,22.3659]
[1754801065324,1.6567,4256.2,4256.1,22.724]
[1754801066025,1.6567,4256.2,4256.1,22.551]
[1754801066924,1.6567,4256.2,4256.1,22.724]
[1754801067427,1.2468,4256.2,4256.1,22.724]
[1754801067731,1.2468,4256.2,4256.1,22.9295]
[1754801068120,1.6567,4256.2,4256.1,1.024]
[1754801068330,1.6567,4256.0,4255.9,0.8389]
[1754801068532,1.6567,4256.0,4255.9,1.36781435]
[1754801069031,1.6567,4256.0,4255.9,22.88981435]
[1754801070034,1.6567,4256.0,4255.9,22.71681435]
[1754801070232,1.6567,4256.0,4255.9,22.88981435]
[1754801070733,1.6567,4256.0,4255.9,1.36781435]
[1754801071129,1.6567,4256.0,4255.9,21.69181435]
[1754801071535,1.6567,4256.0,4255.9,22.08031435]
[1754801072039,1.2468,4255.6,4255.5,1.68106344]
[1754801072335,0.2806,4255.6,4255.5,22.9235]
[1754801072533,0.9662,4256.1,4256.0,0.6355]
[1754801072728,1.3761,4256.1,4256.0,23.09328376]
[1754801073130,1.6567,4256.1,4256.0,23.09328376]
[1754801073424,1.6567,4256.1,4256.0,22.88778376]
[1754801075339,1.6567,4256.1,4256.0,23.08668376]
[1754801075637,1.6567,4256.1,4256.0,23.08664454]
[1754801077142,1.6567,4256.1,4256.0,22.88774454]
[1754801077439,1.6567,4256.1,4256.0,26.09554454]
[1754801078342,1.6567,4256.1,4256.0,26.09551828]
[1754801079143,1.6567,4256.1,4256.0,26.29441828]
[1754801079535,0.2982,4256.4,4256.3,1.8764]
[1754801079835,1.10265,4256.9,4256.8,0.6357]
[1754801080036,1.10265,4256.9,4256.8,22.7237]
[1754801080235,0.6329,4256.9,4256.8,22.7237]
[1754801080435,1.6155,4256.9,4256.8,22.7237]
[1754801081639,0.2982,4256.9,4256.8,22.9226]
[1754801081842,0.2982,4256.9,4256.8,23.09325765]
[1754801082137,0.279,4257.1,4257.0,0.6357]
[1754801082343,0.5772,4257.1,4257.0,22.9216]
[1754801082741,0.775,4257.1,4257.0,22.9216]
[1754801083239,0.775,4257.1,4257.0,26.30001006]
[1754801083430,1.2101,4257.1,4257.0,26.1294]
[1754801083643,1.6155,4257.1,4257.0,26.1294]
[1754801085147,0.51094087,4258.2,4257.0,24.7228]
[1754801085345,3.2078,4259.3,4258.0,3.2078]
[1754801085535,1.17375,4259.2,4258.2,1.68106344]
[1754801085736,0.279,4258.8,4258.2,1.2077]
[1754801085947,1.3173,4258.8,4258.7,1.2077]
[1754801086140,1.3173,4258.8,4258.7,22.7187]
[1754801086443,0.9584,4258.9,4258.8,1.67724]
[1754801086847,1.6155,4258.9,4258.8,1.67724]
[1754801087446,1.6155,4258.9,4258.8,1.2077]
[1754801087840,1.6155,4258.7,4258.6,3.2078]
[1754801088044,0.6329,4258.1,4258.0,0.4055]
[1754801088347,0.6329,4258.1,4258.0,21.51]
[1754801088647,1.6155,4258.1,4258.0,21.51]
[1754801089251,0.9584,4258.1,4258.0,22.9166]
[1754801089452,1.04675,4258.7,4258.2,0.6361]
[1754801089649,1.6155,4258.7,4258.6,1.2077]
[1754801089848,1.6155,4258.7,4258.6,22.7137]
[1754801090749,1.6155,4258.7,4257.9,3.2078]
[1754801090750,0.9119,4258.1,4257.9,3.2078]
[1754801091049,1.6155,4258.0,4257.9,4.4155]
[1754801091349,1.6155,4258.0,4257.9,25.9195]
[1754801091556,0.4768,4258.3,4258.2,0.572]
[1754801091750,0.4768,4258.3,4258.2,1.4066]
[1754801092054,0.4768,4258.3,4258.2,22.9106]
[1754801092252,1.6155,4258.4,4258.3,0.4055]
[1754801094257,0.6329,4258.0,4257.9,4.26503]
[1754801094450,1.6155,4258.0,4257.9,3.7954]
[1754801094652,1.6155,4258.0,4257.9,25.2974]
[1754801094850,1.6155,4258.0,4257.9,3.7954]
[1754801095051,1.6155,4258.0,4257.9,25.5703]
[1754801095253,1.6155,4258.0,4257.9,4.4155]
[1754801095455,1.6155,4258.0,4257.9,25.9165]
[1754801095850,1.6155,4258.0,4257.9,24.7088]
[1754801096157,1.6155,4258.0,4257.9,3.2078]
[1754801096456,1.6155,4258.0,4257.9,24.7088]
[1754801096955,1.6155,4258.0,4257.9,3.2078]
[1754801097254,1.6155,4258.0,4257.9,24.7088]
[1754801098150,1.6155,4258.0,4257.9,3.2078]
[1754801099655,1.6155,4257.4,4257.3,1.6774]
[1754801099853,1.6155,4257.4,4257.3,23.1764]
[1754801100056,1.6155,4257.4,4257.3,1.6774]
[1754801100256,1.6155,4257.4,4257.3,22.7067]
[1754801100453,1.6155,4257.4,4257.3,0.455]
[1754801100658,1.6155,4257.4,4257.3,21.7719]
[1754801100960,1.6155,4257.4,4257.3,22.7067]
[1754801101656,0.6602,4257.5,4257.4,1.4066]
[1754801101857,0.9584,4257.5,4257.4,1.4066]
[1754801102157,1.6155,4257.5,4257.4,1.2077]
[1754801102554,0.76781,4258.1,4258.0,0.6357]
[1754801102761,3.2078,4258.2,4258.0,22.9066]
[1754801102962,3.2078,4258.2,4258.1,1.4066]
[1754801103255,3.506,4258.2,4258.1,1.4066]
[1754801103460,4.31031,4258.2,4258.1,21.499]
[1754801103864,0.6329,4257.7,4257.6,1.10537]
[1754801104056,1.6155,4257.7,4257.6,22.60437]
[1754801104564,1.2101,4257.7,4257.6,23.37527]
[1754801104763,1.6155,4257.7,4257.6,23.17637]
[1754801104965,0.6329,4257.7,4257.3,0.4697]
[1754801105165,0.6374,4257.3,4257.2,4.2579]
[1754801105462,1.5956,4257.3,4257.2,25.9121]
[1754801105661,1.5956,4257.3,4257.2,4.4141]
[1754801105965,1.5956,4257.3,4257.2,25.1622]
[1754801106365,1.5956,4257.3,4257.2,3.6642]
[1754801106662,1.5956,4257.3,4257.2,24.7058]
[1754801107261,1.5956,4257.3,4257.2,3.2078]
[1754801108163,0.6374,4257.0,4256.9,21.497]
[1754801108464,1.5956,4257.0,4256.9,21.497]
[1754801108860,1.5956,4257.0,4256.7,0.4017]
[1754801108861,0.6374,4256.8,4256.7,0.4017]
[1754801109056,1.5956,4256.8,4256.7,0.8581]
[1754801109263,1.5956,4256.8,4256.7,1.0501]
[1754801109463,2.06536,4256.8,4256.7,22.5461]
[1754801109659,0.9582,4256.7,4256.6,37.0438]
[1754801109965,1.5956,4256.7,4256.6,58.5418]
[1754801110162,1.5956,4256.7,4256.6,24.7058]
[1754801110365,1.5956,4256.7,4256.6,21.498]
[1754801110870,4.3978,4257.3,4257.2,0.6484]
[1754801111161,0.2692,4257.9,4257.7,0.46966]
[1754801111366,3.2078,4258.3,4257.9,0.46964]
[1754801111563,4.1286,4258.3,4258.2,0.6484]
[1754801111868,4.5342,4258.3,4258.2,1.2063]
[1754801112070,1.5956,4258.3,4258.2,1.2063]
[1754801114166,1.19,4258.3,4258.2,1.2063]
[1754801114467,0.2692,4258.3,4258.2,1.395]
[1754801114768,0.4056,4258.7,4258.2,1.6759]
[1754801114769,0.46956,4258.7,4258.2,1.6759]
[1754801114972,1.65956,4258.7,4258.6,1.2063]
[1754801115272,1.5956,4258.7,4258.6,22.7033]
[1754801115468,0.2692,4258.8,4258.7,1.395]
[1754801116069,1.19,4258.8,4258.7,1.2063]
[1754801116271,1.5956,4258.8,4258.7,1.2063]
[1754801119566,0.46951,4259.1,4258.8,0.5579]
[1754801119772,2.06511,4259.1,4259.0,1.2063]
[1754801120174,1.19,4259.1,4259.0,1.0501]
[1754801120370,3.4912,4259.4,4259.0,1.395]
[1754801120570,4.8034,4259.4,4259.3,1.2063]
[1754801120771,4.8034,4259.4,4259.3,22.7003]
[1754801120971,4.8034,4259.4,4259.3,22.1424]
[1754801121175,4.8034,4259.4,4259.3,21.494]
[1754801121378,4.8034,4259.4,4259.3,22.7003]
[1754801121774,1.5956,4259.4,4259.3,22.7003]
[1754801122677,1.5956,4259.4,4259.3,22.3521]
[1754801122881,1.5956,4259.4,4259.3,21.7667]
[1754801123270,0.4695,4259.1,4258.7,0.5]
[1754801123476,1.5956,4258.8,4258.7,0.5]
[1754801123777,1.5956,4258.8,4258.7,22.3927]
[1754801123980,1.5956,4258.8,4258.7,22.8491]
[1754801125479,1.5956,4258.8,4258.7,23.1973]
[1754801125679,3.2078,4259.6,4258.7,22.8281]
[1754801125872,1.5956,4259.4,4259.3,1.0501]
[1754801126078,1.5956,4259.4,4259.3,22.6953]
[1754801126775,0.2692,4259.4,4259.3,22.6953]
[1754801126975,0.2692,4259.4,4259.3,22.884]
[1754801127673,0.447,4259.4,4259.3,22.884]
[1754801127981,1.19,4259.4,4259.3,22.884]
[1754801128874,1.5956,4259.4,4259.3,1.2063]
[1754801129079,1.5956,4259.4,4259.3,22.6953]
[1754801129280,1.5956,4259.4,4259.3,1.0501]
[1754801129582,1.5956,4259.1,4259.0,3.2078]
[1754801129881,1.5956,4259.1,4259.0,24.6958]
[1754801130577,0.2692,4259.1,4259.0,24.6958]
[1754801130776,0.365,4259.1,4259.0,3.67731]
[1754801130982,1.5956,4259.1,4259.0,25.1512]
[1754801131181,1.5956,4259.1,4259.0,3.2078]
[1754801131379,1.5956,4259.1,4259.0,4.4057]
[1754801131578,1.5956,4259.1,4259.0,25.8927]
[1754801135077,1.5956,4259.1,4259.0,25.7449]
[1754801135382,1.5956,4259.1,4259.0,24.6938]
[1754801135575,1.10691,4259.1,4259.0,21.985]
[1754801135781,0.6374,4259.1,4259.0,21.985]
[1754801136175,1.6155,4259.1,4259.0,21.985]
[1754801137182,1.6155,4259.1,4259.0,23.1455]
[1754801137484,0.5617,4259.1,4259.0,23.1455]
[1754801137688,0.92379239,4259.4,4259.3,1.0144]
[1754801137889,1.62399239,4259.4,4259.3,21.485]
[1754801138077,0.46948,4259.3,4259.0,0.5]
[1754801138282,1.6194,4259.1,4259.0,0.5]
[1754801138584,1.6194,4259.1,4259.0,21.985]
[1754801138984,1.6194,4259.1,4259.0,0.5]
[1754801139185,1.6194,4259.1,4259.0,21.985]
[1754801139389,1.6194,4259.1,4259.0,0.5]
[1754801139582,1.6194,4259.1,4259.0,21.984]
[1754801139784,1.6194,4259.1,4259.0,0.5]
[1754801140085,1.6194,4259.1,4259.0,21.984]
[1754801140281,1.6194,4259.1,4259.0,23.1445]
[1754801142789,0.1889,4259.3,4259.2,1.1605]
[1754801142994,0.6525,4259.3,4259.2,1.1605]
[1754801143189,1.3415,4259.3,4259.2,1.1605]
[1754801143386,1.6194,4259.3,4259.2,1.1605]
[1754801143698,1.6194,4259.3,4259.2,22.6445]
[1754801144298,0.00459239,4259.4,4259.2,22.8231]
[1754801144495,0.28249239,4259.4,4259.3,1.3391]
[1754801145195,1.20759239,4259.4,4259.3,1.1605]
[1754801145389,1.62399239,4259.4,4259.3,1.1605]
[1754801145797,1.62399239,4259.4,4259.3,0.8346]
[1754801145989,0.64589239,4259.4,4259.2,21.484]
[1754801146295,1.6194,4259.3,4259.2,21.484]
[1754801146596,0.00459239,4259.4,4259.2,22.4984]
[1754801146896,0.5617,4259.3,4259.2,22.2932]
[1754801147092,0.2779,4259.3,4259.2,22.2932]
[1754801147390,0.5617,4259.3,4259.2,22.99602278]
[1754801147595,0.5617,4259.3,4259.2,22.81742278]
[1754801147596,1.6194,4259.3,4259.2,22.81742278]
[1754801147795,1.6194,4259.3,4259.2,22.4974]
[1754801147986,0.00459239,4259.4,4259.3,1.3391]
[1754801148189,0.64589239,4259.4,4259.3,1.33338]
[1754801148393,1.34609239,4259.4,4259.3,22.4974]
[1754801148595,1.62399239,4259.4,4259.3,22.4974]
[1754801148996,1.62399239,4259.4,4259.3,21.9338]
[1754801149203,1.62399239,4259.4,4259.0,1.35331]
[1754801149498,0.6413,4259.2,4259.1,22.49045228]
[1754801149697,1.6194,4259.2,4259.1,1.00745228]
[1754801149886,1.6194,4259.2,4259.1,21.65585228]
[1754801150491,1.6194,4259.2,4259.1,22.67025228]
[1754801150691,1.6194,4259.2,4259.1,22.81639586]
[1754801151095,1.6194,4259.2,4259.1,22.67029586]
[1754801152398,0.28249239,4259.4,4259.3,1.3391]
[1754801152596,0.00459239,4259.4,4259.3,22.8221]
[1754801153200,0.28249239,4259.4,4259.3,1.1605]
[1754801153493,0.28249239,4259.4,4259.3,22.8221]
[1754801153692,0.56629239,4259.4,4259.3,22.8221]
[1754801153999,0.28249239,4259.4,4259.3,22.8221]
[1754801155092,0.00459239,4259.4,4259.3,22.8221]
[1754801155295,2.13067903,4260.5,4260.4,0.6306]
[1754801155500,2.13067903,4260.5,4260.4,22.1326]
[1754801155699,2.13067903,4260.5,4260.4,22.5164]
[1754801156391,1.6194,4260.5,4260.4,22.6625]
[1754801156795,1.6194,4260.5,4260.4,21.502]
[1754801157397,1.17338,4260.5,4259.4,0.3838]
[1754801157702,1.6194,4259.6,4259.5,22.97675752]
[1754801157897,1.6194,4259.6,4259.5,23.15655752]
[1754801158090,1.6194,4259.6,4259.5,23.30265752]
[1754801158294,0.6525,4259.9,4259.8,1.80853]
[1754801158502,0.6525,4259.9,4259.8,23.31053]
[1754801158708,0.6525,4259.9,4259.8,22.8411]
[1754801158892,1.6194,4259.9,4259.8,22.6625]
[1754801160498,1.6194,4259.9,4259.8,22.5164]
[1754801160693,1.6194,4259.9,4259.8,22.1326]
[1754801161101,1.6194,4259.9,4259.5,0.5299]
[1754801161305,0.6413,4259.7,4259.6,21.8848]
[1754801161496,1.6194,4259.7,4259.6,0.3838]
[1754801161798,0.9781,4259.6,4259.3,3.67728]
[1754801162106,1.6194,4259.4,4259.3,4.83778]
[1754801162305,1.6194,4259.4,4259.3,27.71409657]
[1754801162502,1.6194,4259.4,4259.3,6.21219641]
[1754801162703,1.6194,4259.4,4259.3,27.71019641]
[1754801163894,1.6194,4259.4,4259.3,6.21219641]
[1754801164095,1.6194,4259.4,4259.3,27.70519641]
[1754801164301,0.6413,4260.0,4259.9,0.4508]
[1754801164604,0.6413,4260.0,4259.7,0.3838]
[1754801164804,0.6413,4260.0,4259.8,21.491]
[1754801165106,0.7395,4259.9,4259.8,25.8593]
[1754801165298,0.5334,4260.3,4260.2,0.2639]
[1754801165602,0.8896,4260.3,4260.2,0.6257]
[1754801165805,0.8896,4260.3,4260.2,1.0185]
[1754801165998,1.5568,4260.3,4260.2,1.0185]
[1754801166195,2.618,4260.7,4260.2,21.491]
[1754801166498,0.2727,4261.7,4261.5,0.6257]
[1754801166499,3.4778,4261.6,4261.5,0.6257]
[1754801166706,0.46924,4261.5,4261.4,21.489]
[1754801166900,0.9372,4261.4,4261.2,21.505]
[1754801167104,1.5568,4260.9,4260.8,0.8401]
[1754801167299,1.5568,4260.8,4260.7,1.0185]
[1754801167606,0.6262,4260.8,4260.7,22.6718]
[1754801167808,1.5568,4261.2,4261.1,1.1548]
[1754801167997,0.3945,4261.1,4260.8,0.3928]
[1754801168204,1.5568,4260.9,4260.8,1.1548]
[1754801168601,1.5568,4260.9,4260.8,1.0185]
[1754801168795,1.5568,4260.9,4260.8,0.6567]
[1754801169000,1.5568,4260.8,4260.7,21.517]
[1754801169302,1.5568,4260.8,4260.7,22.5355]
[1754801169502,1.5568,4260.8,4260.7,22.6718]
[1754801169702,1.5568,4260.8,4260.7,22.5355]
[1754801169898,3.2078,4261.6,4260.7,21.7809]
[1754801170103,1.5568,4261.3,4261.2,1.1548]
[1754801170307,1.5568,4261.3,4261.2,0.4473]
[1754801170703,0.6196,4261.0,4260.9,1.0185]
[1754801170901,1.5568,4261.0,4260.9,1.1548]
[1754801171508,1.1623,4261.0,4260.9,1.1548]
[1754801171911,1.5568,4261.0,4260.9,1.1548]
[1754801172308,3.2078,4261.6,4260.9,1.1548]
[1754801172503,0.27,4261.5,4261.4,1.0185]
[1754801172812,0.7149,4261.5,4261.4,0.6257]
[1754801173005,1.1623,4261.5,4261.4,0.6257]
[1754801173199,1.5568,4261.5,4261.4,1.1548]
[1754801173809,0.46923,4261.6,4261.4,0.2639]
[1754801174012,1.76263,4261.6,4261.5,1.1548]
[1754801174206,2.02603,4261.6,4261.5,1.0185]
[1754801174412,0.6196,4261.3,4261.2,0.8401]
[1754801174711,1.5568,4261.3,4261.2,22.3461]
[1754801175009,1.5568,4261.3,4261.2,22.5245]
[1754801175510,1.5568,4261.3,4261.2,22.6608]
[1754801176513,1.1623,4261.3,4261.2,22.6608]
[1754801177114,1.5568,4261.3,4261.2,22.6608]
[1754801178207,1.5568,4261.3,4261.2,1.1548]
[1754801178408,1.5568,4261.3,4261.2,22.6478]
[1754801178607,1.5568,4261.3,4261.2,0.8401]
[1754801178920,1.5568,4261.3,4261.2,22.6468]
[1754801179709,1.5568,4261.3,4261.2,1.1548]
[1754801179910,1.5568,4261.0,4260.9,3.2078]
[1754801180214,1.5568,4260.2,4260.1,4.3626]
[1754801180413,0.5427,4260.2,4260.1,26.31899]
[1754801180612,0.4474,4259.9,4259.8,0.73333]
[1754801180811,1.2868,4259.9,4259.8,22.59713]
[1754801181011,0.2727,4259.9,4259.8,22.98993]
[1754801181219,3.2078,4260.4,4259.8,22.98993]
[1754801181220,0.5427,4260.4,4260.3,1.3235]
[1754801181405,0.27,4260.4,4260.3,22.8255]
[1754801181610,4.1001,4260.9,4260.8,1.62412]
[1754801181811,4.4946,4260.9,4260.8,23.13412]
[1754801182019,4.4946,4260.9,4260.8,22.6648]
[1754801182315,1.5568,4260.8,4260.7,1.0185]
[1754801182520,1.5568,4260.8,4260.7,22.6698]
[1754801183312,3.2078,4260.9,4260.7,22.8385]
[1754801183512,3.2078,4260.9,4260.8,1.3235]
[1754801183912,3.4778,4260.9,4260.8,1.3235]
[1754801184412,4.7646,4260.9,4260.8,1.1548]
[1754801184613,4.7646,4260.9,4260.8,1.0185]
[1754801185312,1.5568,4260.9,4260.8,1.0185]
[1754801185614,1.5568,4260.2,4260.1,1.0185]
[1754801185809,1.5568,4260.2,4260.1,22.5415]
[1754801186607,0.27,4260.2,4260.1,25.8856]
[1754801186809,0.46933,4260.7,4260.1,26.52369]
[1754801187014,1.1623,4260.4,4260.3,1.1548]
[1754801188311,0.8896,4261.0,4260.9,0.4473]
[1754801188524,1.5568,4261.0,4260.9,22.3601]
[1754801188919,1.1623,4261.0,4260.9,22.5385]
[1754801189116,1.1623,4261.0,4260.9,22.6748]
[1754801190117,1.5568,4261.0,4260.9,22.5385]